[Event "Early-Titled-Tuesday-Blitz-February-06-2024"]
[Site "Chess.com"]
[Date "2024.02.06"]
[Round "10"]
[White "Cubitas"]
[Black "ClaudiaSof"]
[Result "0-1"]
[WhiteElo "2666"]
[BlackElo "2298"]
[TimeControl "180+1"]
[EndTime "9:56:37 PST"]
[Termination "ClaudiaSof won by checkmate"]

1. b3 {[%clk 0:03:00.9]} 1... e5 {[%clk 0:02:58.9]} 2. Bb2 {[%clk 0:03:01.8]}
2... Nc6 {[%clk 0:02:57.1]} 3. e3 {[%clk 0:03:02.7]} 3... Nf6 {[%clk 0:02:54.4]}
4. Bb5 {[%clk 0:03:02.7]} 4... Bd6 {[%clk 0:02:53.9]} 5. Nf3 {[%clk 0:03:02.5]}
5... Qe7 {[%clk 0:02:53.2]} 6. d4 {[%clk 0:03:00.6]} 6... e4 {[%clk 0:02:47]} 7.
Nh4 {[%clk 0:02:59.5]} 7... g6 {[%clk 0:02:26.6]} 8. c4 {[%clk 0:02:45.5]} 8...
Bb4+ {[%clk 0:02:24.1]} 9. Nd2 {[%clk 0:02:40.2]} 9... a6 {[%clk 0:02:21.4]} 10.
Ba4 {[%clk 0:02:33.5]} 10... d5 {[%clk 0:02:11]} 11. g3 {[%clk 0:02:23.5]} 11...
Bd7 {[%clk 0:02:02.7]} 12. a3 {[%clk 0:02:21.1]} 12... Bxd2+ {[%clk 0:02:01]}
13. Qxd2 {[%clk 0:02:21.1]} 13... Nb8 {[%clk 0:01:45.8]} 14. Bxd7+ {[%clk
0:02:11.1]} 14... Nbxd7 {[%clk 0:01:45.5]} 15. a4 {[%clk 0:02:09.1]} 15... Qe6
{[%clk 0:01:39.5]} 16. Ba3 {[%clk 0:01:46.9]} 16... dxc4 {[%clk 0:01:35.7]} 17.
bxc4 {[%clk 0:01:19.6]} 17... Qxc4 {[%clk 0:01:34.9]} 18. a5 {[%clk 0:01:20]}
18... Qd3 {[%clk 0:01:26.1]} 19. Qb2 {[%clk 0:01:13]} 19... Nd5 {[%clk
0:01:21.3]} 20. Rb1 {[%clk 0:01:03.4]} 20... Rb8 {[%clk 0:01:12.1]} 21. Ng2
{[%clk 0:01:01.8]} 21... Qc3+ {[%clk 0:01:02.7]} 22. Qxc3 {[%clk 0:00:49.3]}
22... Nxc3 {[%clk 0:01:02.6]} 23. Rc1 {[%clk 0:00:48.7]} 23... Nb5 {[%clk
0:01:02.5]} 24. Nf4 {[%clk 0:00:47.9]} 24... Nxa3 {[%clk 0:01:01.6]} 25. Rxc7
{[%clk 0:00:44.9]} 25... Nf6 {[%clk 0:01:00.8]} 26. Ke2 {[%clk 0:00:44.2]} 26...
Nb5 {[%clk 0:01:00.2]} 27. Rc5 {[%clk 0:00:42.8]} 27... O-O {[%clk 0:00:59.7]}
28. Rhc1 {[%clk 0:00:42.6]} 28... Rfd8 {[%clk 0:00:58.6]} 29. g4 {[%clk
0:00:40.7]} 29... h6 {[%clk 0:00:56.1]} 30. g5 {[%clk 0:00:38.8]} 30... hxg5
{[%clk 0:00:55.4]} 31. Rxg5 {[%clk 0:00:39.7]} 31... Kg7 {[%clk 0:00:51]} 32.
Rcg1 {[%clk 0:00:39.1]} 32... Rh8 {[%clk 0:00:48.9]} 33. h3 {[%clk 0:00:33.6]}
33... Rbc8 {[%clk 0:00:48.1]} 34. Re5 {[%clk 0:00:32]} 34... Rc7 {[%clk
0:00:45.5]} 35. f3 {[%clk 0:00:30.2]} 35... Nc3+ {[%clk 0:00:43]} 36. Kf2 {[%clk
0:00:28.8]} 36... exf3 {[%clk 0:00:43]} 37. Kxf3 {[%clk 0:00:29.7]} 37... Nb5
{[%clk 0:00:40.5]} 38. d5 {[%clk 0:00:28]} 38... Rd7 {[%clk 0:00:38.3]} 39. e4
{[%clk 0:00:27.8]} 39... Nd6 {[%clk 0:00:36.8]} 40. Re1 {[%clk 0:00:17.9]} 40...
Rc8 {[%clk 0:00:34.4]} 41. Rg5 {[%clk 0:00:18.3]} 41... Rc3+ {[%clk 0:00:32.7]}
42. Kg2 {[%clk 0:00:18.6]} 42... Ndxe4 {[%clk 0:00:32]} 43. Re5 {[%clk
0:00:17.6]} 43... Rc2+ {[%clk 0:00:31.5]} 44. Kf3 {[%clk 0:00:17.1]} 44... Nd6
{[%clk 0:00:28.2]} 45. Nd3 {[%clk 0:00:15.8]} 45... Nf5 {[%clk 0:00:26.7]} 46.
Nf4 {[%clk 0:00:15.6]} 46... Rc3+ {[%clk 0:00:26.5]} 47. Kg2 {[%clk 0:00:14.8]}
47... Rc5 {[%clk 0:00:26.7]} 48. Ne6+ {[%clk 0:00:12.6]} 48... fxe6 {[%clk
0:00:26.4]} 49. dxe6 {[%clk 0:00:13.5]} 49... Re7 {[%clk 0:00:26.3]} 50. Rxc5
{[%clk 0:00:13.2]} 50... Ne8 {[%clk 0:00:21.1]} 51. Rce5 {[%clk 0:00:13.5]}
51... Kf6 {[%clk 0:00:20.8]} 52. R1e2 {[%clk 0:00:13.3]} 52... Ned6 {[%clk
0:00:20.8]} 53. Re1 {[%clk 0:00:13.6]} 53... Ne8 {[%clk 0:00:20.8]} 54. Kh2
{[%clk 0:00:14]} 54... Neg7 {[%clk 0:00:21]} 55. R5e2 {[%clk 0:00:14.4]} 55...
Rxe6 {[%clk 0:00:21.3]} 56. Rxe6+ {[%clk 0:00:14.4]} 56... Nxe6 {[%clk
0:00:21.5]} 57. Rb1 {[%clk 0:00:15.3]} 57... Nd6 {[%clk 0:00:21.9]} 58. Rb6
{[%clk 0:00:15.9]} 58... Ke5 {[%clk 0:00:22.2]} 59. h4 {[%clk 0:00:15.8]} 59...
Kd5 {[%clk 0:00:21.6]} 60. Kh3 {[%clk 0:00:16.2]} 60... Nd4 {[%clk 0:00:21.4]}
61. Rb1 {[%clk 0:00:17.1]} 61... N4f5 {[%clk 0:00:20.6]} 62. Rd1+ {[%clk
0:00:18]} 62... Kc6 {[%clk 0:00:20.3]} 63. Kg4 {[%clk 0:00:18.9]} 63... Kb5
{[%clk 0:00:20.4]} 64. Kg5 {[%clk 0:00:19.4]} 64... Kxa5 {[%clk 0:00:20]} 65.
Kxg6 {[%clk 0:00:19.8]} 65... Nxh4+ {[%clk 0:00:20.4]} 66. Kg5 {[%clk
0:00:19.7]} 66... Nhf5 {[%clk 0:00:19.9]} 67. Kf4 {[%clk 0:00:20.3]} 67... b5
{[%clk 0:00:20]} 68. Ke5 {[%clk 0:00:20.9]} 68... b4 {[%clk 0:00:20.3]} 69. Ra1+
{[%clk 0:00:20.2]} 69... Kb5 {[%clk 0:00:20.5]} 70. Kd5 {[%clk 0:00:20.2]} 70...
a5 {[%clk 0:00:20.9]} 71. Rb1 {[%clk 0:00:19.9]} 71... a4 {[%clk 0:00:20.9]} 72.
Rc1 {[%clk 0:00:20.6]} 72... b3 {[%clk 0:00:21.1]} 73. Rc5+ {[%clk 0:00:21.5]}
73... Kb4 {[%clk 0:00:21.6]} 74. Rc7 {[%clk 0:00:21.4]} 74... b2 {[%clk
0:00:21.8]} 75. Rc1 {[%clk 0:00:19.7]} 75... bxc1=Q {[%clk 0:00:20.5]} 76. Ke6
{[%clk 0:00:20.2]} 76... Qc4+ {[%clk 0:00:20.5]} 77. Kd7 {[%clk 0:00:21.1]}
77... Nb5 {[%clk 0:00:19.2]} 78. Kd8 {[%clk 0:00:22]} 78... Qf7 {[%clk
0:00:18.1]} 79. Kc8 {[%clk 0:00:22.1]} 79... Qc7# {[%clk 0:00:18.1]} 0-1

[Event "Early-Titled-Tuesday-Blitz-February-06-2024"]
[Site "Chess.com"]
[Date "2024.02.06"]
[Round "10"]
[White "M1711"]
[Black "BogdanDeac"]
[Result "0-1"]
[WhiteElo "2658"]
[BlackElo "3002"]
[TimeControl "180+1"]
[EndTime "9:56:42 PST"]
[Termination "BogdanDeac won on time"]

1. e4 {[%clk 0:03:00.9]} 1... c6 {[%clk 0:02:59.3]} 2. d4 {[%clk 0:02:59.9]}
2... d5 {[%clk 0:02:59.8]} 3. Nd2 {[%clk 0:03:00.1]} 3... Qc7 {[%clk 0:02:59.2]}
4. Ngf3 {[%clk 0:02:59.6]} 4... Bg4 {[%clk 0:02:59.1]} 5. c3 {[%clk 0:02:58.1]}
5... e6 {[%clk 0:02:56.1]} 6. h3 {[%clk 0:02:57.6]} 6... Bh5 {[%clk 0:02:55.4]}
7. Bd3 {[%clk 0:02:57.4]} 7... Nf6 {[%clk 0:02:55.4]} 8. O-O {[%clk 0:02:56.7]}
8... Be7 {[%clk 0:02:54.1]} 9. Re1 {[%clk 0:02:54.1]} 9... a5 {[%clk 0:02:54.2]}
10. exd5 {[%clk 0:02:50.3]} 10... Nxd5 {[%clk 0:02:50.3]} 11. Ne4 {[%clk
0:02:47.7]} 11... a4 {[%clk 0:02:49.6]} 12. Ng3 {[%clk 0:02:43.7]} 12... Bg6
{[%clk 0:02:48.8]} 13. Bxg6 {[%clk 0:02:34.1]} 13... hxg6 {[%clk 0:02:49.7]} 14.
Ne5 {[%clk 0:02:32.2]} 14... Nd7 {[%clk 0:02:46.4]} 15. Nd3 {[%clk 0:02:16.7]}
15... a3 {[%clk 0:02:45.1]} 16. c4 {[%clk 0:02:08.1]} 16... Nb4 {[%clk
0:01:44.2]} 17. bxa3 {[%clk 0:01:53.5]} 17... Nxd3 {[%clk 0:01:40.8]} 18. Qxd3
{[%clk 0:01:53.4]} 18... Qa5 {[%clk 0:01:32.9]} 19. Re2 {[%clk 0:01:38.6]} 19...
O-O {[%clk 0:01:22]} 20. Rb1 {[%clk 0:01:24.5]} 20... b6 {[%clk 0:01:21.7]} 21.
Qe4 {[%clk 0:01:18.3]} 21... Rfc8 {[%clk 0:01:18.1]} 22. Rb3 {[%clk 0:01:11.8]}
22... Qa4 {[%clk 0:01:09]} 23. Qd3 {[%clk 0:01:08.7]} 23... Rd8 {[%clk
0:00:59.5]} 24. Qc2 {[%clk 0:00:57.9]} 24... b5 {[%clk 0:00:46.8]} 25. cxb5
{[%clk 0:00:52.1]} 25... cxb5 {[%clk 0:00:45.6]} 26. Be3 {[%clk 0:00:38.6]}
26... Nf6 {[%clk 0:00:18.2]} 27. Qb1 {[%clk 0:00:35.7]} 27... Nd5 {[%clk
0:00:17.4]} 28. Rc2 {[%clk 0:00:32]} 28... Rdc8 {[%clk 0:00:13.2]} 29. Rxc8+
{[%clk 0:00:20.7]} 29... Rxc8 {[%clk 0:00:14.1]} 30. Ne2 {[%clk 0:00:14.5]}
30... Qc4 {[%clk 0:00:11.4]} 31. Qf1 {[%clk 0:00:11]} 31... Ra8 {[%clk
0:00:07.2]} 32. Ng3 {[%clk 0:00:09]} 32... Bxa3 {[%clk 0:00:05.4]} 33. Rxb5
{[%clk 0:00:08.2]} 33... Qxa2 {[%clk 0:00:04.8]} 34. Qb1 {[%clk 0:00:06.7]}
34... Qxb1+ {[%clk 0:00:04.1]} 35. Rxb1 {[%clk 0:00:06.9]} 35... f5 {[%clk
0:00:04.1]} 36. Ne2 {[%clk 0:00:06.7]} 36... Bd6 {[%clk 0:00:04.6]} 37. Kf1
{[%clk 0:00:06.1]} 37... Ra3 {[%clk 0:00:04.1]} 38. g3 {[%clk 0:00:05.8]} 38...
Nxe3+ {[%clk 0:00:03.9]} 39. fxe3 {[%clk 0:00:05.8]} 39... Rxe3 {[%clk
0:00:04.8]} 40. Kf2 {[%clk 0:00:03]} 40... Re4 {[%clk 0:00:05.2]} 41. Kf3 {[%clk
0:00:01.5]} 41... g5 {[%clk 0:00:05.1]} 42. Rb6 {[%clk 0:00:02.1]} 42... Be7
{[%clk 0:00:05.3]} 43. Kf2 {[%clk 0:00:02.2]} 43... Bf6 {[%clk 0:00:05.5]} 44.
Rd6 {[%clk 0:00:02.1]} 44... Kf7 {[%clk 0:00:05.5]} 45. Rd7+ {[%clk 0:00:02.7]}
45... Ke8 {[%clk 0:00:05.7]} 46. Rb7 {[%clk 0:00:01.5]} 46... g4 {[%clk
0:00:06.1]} 47. hxg4 {[%clk 0:00:02]} 47... Rxg4 {[%clk 0:00:07]} 48. Kf3 {[%clk
0:00:02.4]} 48... Re4 {[%clk 0:00:07.1]} 49. Ra7 {[%clk 0:00:01.9]} 49... g5
{[%clk 0:00:07.3]} 50. Rb7 {[%clk 0:00:02.1]} 50... g4+ {[%clk 0:00:07.5]} 51.
Kf2 {[%clk 0:00:02.7]} 51... Bxd4+ {[%clk 0:00:08]} 52. Kf1 {[%clk 0:00:02.6]}
52... Be5 {[%clk 0:00:08.2]} 53. Rb6 {[%clk 0:00:02.5]} 53... Ke7 {[%clk
0:00:08.1]} 54. Rb7+ {[%clk 0:00:02.9]} 54... Kf6 {[%clk 0:00:08]} 55. Ra7
{[%clk 0:00:03]} 55... Rb4 {[%clk 0:00:07.6]} 56. Ra8 {[%clk 0:00:03]} 56...
Rb1+ {[%clk 0:00:07]} 57. Kf2 {[%clk 0:00:03.3]} 57... Rb2 {[%clk 0:00:07.6]}
58. Kf1 {[%clk 0:00:02.7]} 58... Rb8 {[%clk 0:00:06.9]} 59. Ra7 {[%clk
0:00:02.3]} 59... Rb1+ {[%clk 0:00:06.1]} 60. Kf2 {[%clk 0:00:02.5]} 60... Rb2
{[%clk 0:00:06]} 61. Kf1 {[%clk 0:00:03.1]} 61... Rb3 {[%clk 0:00:06.4]} 62. Kf2
{[%clk 0:00:03.3]} 62... Rf3+ {[%clk 0:00:06.5]} 63. Kg2 {[%clk 0:00:03.9]}
63... Bd6 {[%clk 0:00:06.5]} 64. Ra8 {[%clk 0:00:02.7]} 64... Bc5 {[%clk
0:00:06.5]} 65. Nf4 {[%clk 0:00:02.8]} 65... Bd6 {[%clk 0:00:05]} 66. Ne2 {[%clk
0:00:01.1]} 66... Ra3 {[%clk 0:00:05.1]} 0-1

[Event "Early-Titled-Tuesday-Blitz-February-06-2024"]
[Site "Chess.com"]
[Date "2024.02.06"]
[Round "10"]
[White "Predator0608"]
[Black "PavelShkapenko"]
[Result "0-1"]
[WhiteElo "2539"]
[BlackElo "2755"]
[TimeControl "180+1"]
[EndTime "9:56:44 PST"]
[Termination "PavelShkapenko won by resignation"]

1. e4 {[%clk 0:02:55.2]} 1... e5 {[%clk 0:02:57.9]} 2. Nf3 {[%clk 0:02:55]} 2...
Nc6 {[%clk 0:02:56.9]} 3. Bc4 {[%clk 0:02:55.3]} 3... d6 {[%clk 0:02:54.8]} 4.
d4 {[%clk 0:02:49.8]} 4... Nf6 {[%clk 0:02:52.9]} 5. O-O {[%clk 0:02:43.3]} 5...
Nxe4 {[%clk 0:02:39.5]} 6. Bd5 {[%clk 0:02:30.6]} 6... Nf6 {[%clk 0:02:15.2]} 7.
Bxc6+ {[%clk 0:02:26.8]} 7... bxc6 {[%clk 0:02:16.1]} 8. dxe5 {[%clk 0:02:27.3]}
8... Nd5 {[%clk 0:02:06.7]} 9. c4 {[%clk 0:02:22.4]} 9... Nb6 {[%clk 0:02:04.5]}
10. Re1 {[%clk 0:02:10.2]} 10... Be6 {[%clk 0:01:59.3]} 11. exd6 {[%clk
0:02:03.8]} 11... Qxd6 {[%clk 0:01:52.2]} 12. Qc2 {[%clk 0:01:52.1]} 12... Be7
{[%clk 0:01:45.4]} 13. b3 {[%clk 0:01:39.7]} 13... O-O {[%clk 0:01:41.8]} 14.
Ba3 {[%clk 0:01:38.9]} 14... c5 {[%clk 0:01:39.2]} 15. Nc3 {[%clk 0:01:37.2]}
15... Qf4 {[%clk 0:01:34.6]} 16. Rad1 {[%clk 0:01:30.3]} 16... Bd6 {[%clk
0:01:31.4]} 17. Bc1 {[%clk 0:01:25.5]} 17... Qf5 {[%clk 0:01:28.3]} 18. Qxf5
{[%clk 0:01:24.3]} 18... Bxf5 {[%clk 0:01:26.5]} 19. Nb5 {[%clk 0:01:22.9]}
19... Rfd8 {[%clk 0:01:25.2]} 20. Kf1 {[%clk 0:01:05.1]} 20... Bg4 {[%clk
0:00:29.4]} 21. Rd3 {[%clk 0:00:48.5]} 21... a6 {[%clk 0:00:28.7]} 22. Nc3
{[%clk 0:00:47]} 22... Bf8 {[%clk 0:00:26.7]} 23. Red1 {[%clk 0:00:45.7]} 23...
Be7 {[%clk 0:00:26.7]} 24. Ne5 {[%clk 0:00:45.1]} 24... Bf5 {[%clk 0:00:25.6]}
25. Rxd8+ {[%clk 0:00:43.1]} 25... Rxd8 {[%clk 0:00:26.5]} 26. Rxd8+ {[%clk
0:00:42.7]} 26... Bxd8 {[%clk 0:00:27.4]} 27. Be3 {[%clk 0:00:42.1]} 27... Bf6
{[%clk 0:00:26.8]} 28. f4 {[%clk 0:00:34.1]} 28... Bxe5 {[%clk 0:00:26.9]} 29.
fxe5 {[%clk 0:00:35]} 29... Nd7 {[%clk 0:00:27.4]} 30. Nd5 {[%clk 0:00:35.5]}
30... Bb1 {[%clk 0:00:26]} 31. Nc3 {[%clk 0:00:19.2]} 31... Bd3+ {[%clk
0:00:25.4]} 32. Kf2 {[%clk 0:00:18.5]} 32... Nxe5 {[%clk 0:00:25.9]} 33. Bxc5
{[%clk 0:00:18.3]} 33... f6 {[%clk 0:00:25.1]} 34. Ke3 {[%clk 0:00:17.9]} 34...
Bg6 {[%clk 0:00:23.5]} 35. Kd4 {[%clk 0:00:18.1]} 35... c6 {[%clk 0:00:20.4]}
36. Ne4 {[%clk 0:00:18]} 36... Bxe4 {[%clk 0:00:19.8]} 37. Kxe4 {[%clk
0:00:18.9]} 37... Kf7 {[%clk 0:00:20.2]} 38. Bd4 {[%clk 0:00:18.3]} 38... Nd7
{[%clk 0:00:19.5]} 39. b4 {[%clk 0:00:17.3]} 39... Ke6 {[%clk 0:00:19.9]} 40.
Be3 {[%clk 0:00:17.6]} 40... h5 {[%clk 0:00:18.1]} 41. a4 {[%clk 0:00:16.2]}
41... g5 {[%clk 0:00:18.3]} 42. Kd4 {[%clk 0:00:16]} 42... c5+ {[%clk
0:00:16.3]} 43. bxc5 {[%clk 0:00:15.9]} 43... Nb8 {[%clk 0:00:17]} 44. c6 {[%clk
0:00:14.2]} 44... Nxc6+ {[%clk 0:00:17.4]} 45. Kc5 {[%clk 0:00:15.1]} 45... Ne5
{[%clk 0:00:17.7]} 46. Bd4 {[%clk 0:00:14.4]} 46... Nd3+ {[%clk 0:00:07.3]} 47.
Kb6 {[%clk 0:00:13.6]} 47... f5 {[%clk 0:00:06.3]} 48. c5 {[%clk 0:00:11.4]}
48... Nb4 {[%clk 0:00:05.2]} 49. Ka5 {[%clk 0:00:06.5]} 49... Nc6+ {[%clk
0:00:04.7]} 50. Kxa6 {[%clk 0:00:07.2]} 50... Nxd4 {[%clk 0:00:05]} 51. Kb7
{[%clk 0:00:07.3]} 51... Kd5 {[%clk 0:00:05.2]} 52. Kb6 {[%clk 0:00:06.4]} 52...
f4 {[%clk 0:00:03]} 53. a5 {[%clk 0:00:06.5]} 53... Nc6 {[%clk 0:00:03.2]} 54.
a6 {[%clk 0:00:07]} 54... g4 {[%clk 0:00:03.8]} 55. a7 {[%clk 0:00:06.5]} 55...
Nxa7 {[%clk 0:00:03.8]} 56. Kxa7 {[%clk 0:00:07.4]} 56... Kxc5 {[%clk
0:00:04.3]} 57. Kb7 {[%clk 0:00:08.1]} 57... f3 {[%clk 0:00:04.9]} 58. gxf3
{[%clk 0:00:08.6]} 58... gxf3 {[%clk 0:00:05.8]} 59. Kc7 {[%clk 0:00:09.5]}
59... f2 {[%clk 0:00:06.7]} 60. Kb8 {[%clk 0:00:10.4]} 60... f1=Q {[%clk
0:00:07.4]} 61. Ka8 {[%clk 0:00:11.3]} 61... Qh3 {[%clk 0:00:08]} 62. Kb8 {[%clk
0:00:12.2]} 62... Qxh2+ {[%clk 0:00:08.9]} 63. Ka8 {[%clk 0:00:13.1]} 63... Qg3
{[%clk 0:00:09.4]} 64. Kb7 {[%clk 0:00:12.9]} 64... h4 {[%clk 0:00:10.1]} 65.
Ka8 {[%clk 0:00:13.8]} 65... h3 {[%clk 0:00:10.8]} 66. Ka7 {[%clk 0:00:14.7]}
66... Qg7+ {[%clk 0:00:10.8]} 67. Ka8 {[%clk 0:00:15.6]} 67... Kb6 {[%clk
0:00:11]} 0-1

[Event "Early-Titled-Tuesday-Blitz-February-06-2024"]
[Site "Chess.com"]
[Date "2024.02.06"]
[Round "10"]
[White "Hovik_Hayrapetyan"]
[Black "The_Machine04"]
[Result "1/2-1/2"]
[WhiteElo "2886"]
[BlackElo "2713"]
[TimeControl "180+1"]
[EndTime "9:56:50 PST"]
[Termination "Game drawn by repetition"]

1. d4 {[%clk 0:03:00.9]} 1... d6 {[%clk 0:02:59.2]} 2. Nf3 {[%clk 0:03:00.5]}
2... Nf6 {[%clk 0:02:59.4]} 3. c4 {[%clk 0:03:00.6]} 3... g6 {[%clk 0:02:59.3]}
4. Nc3 {[%clk 0:03:01.1]} 4... Bf5 {[%clk 0:02:59.8]} 5. g3 {[%clk 0:03:01.8]}
5... Ne4 {[%clk 0:03:00.1]} 6. Bg2 {[%clk 0:02:53.9]} 6... Nxc3 {[%clk
0:03:00.5]} 7. bxc3 {[%clk 0:02:54.8]} 7... Be4 {[%clk 0:03:00.9]} 8. O-O {[%clk
0:02:53.8]} 8... Bg7 {[%clk 0:03:01.1]} 9. Bh3 {[%clk 0:02:48.3]} 9... Bxf3
{[%clk 0:03:00.4]} 10. exf3 {[%clk 0:02:49.2]} 10... O-O {[%clk 0:03:01]} 11. f4
{[%clk 0:02:48.3]} 11... c5 {[%clk 0:02:59.6]} 12. Rb1 {[%clk 0:02:40.9]} 12...
Qc7 {[%clk 0:02:57.9]} 13. f5 {[%clk 0:02:40.8]} 13... Nc6 {[%clk 0:02:57.3]}
14. fxg6 {[%clk 0:02:38.2]} 14... hxg6 {[%clk 0:02:57.4]} 15. Be3 {[%clk
0:02:29.9]} 15... b6 {[%clk 0:02:54.4]} 16. Qg4 {[%clk 0:02:03.7]} 16... Na5
{[%clk 0:02:51.1]} 17. d5 {[%clk 0:02:03.8]} 17... Qb7 {[%clk 0:02:42.1]} 18.
Rfc1 {[%clk 0:01:46.1]} 18... Qa6 {[%clk 0:02:42.1]} 19. Bf1 {[%clk 0:01:45.9]}
19... Qc8 {[%clk 0:02:42]} 20. Qe4 {[%clk 0:01:41.5]} 20... Re8 {[%clk
0:02:37.6]} 21. h4 {[%clk 0:01:40.7]} 21... e6 {[%clk 0:02:31.9]} 22. dxe6
{[%clk 0:01:41.6]} 22... Qxe6 {[%clk 0:02:31.5]} 23. Qxe6 {[%clk 0:01:34.9]}
23... fxe6 {[%clk 0:02:30.2]} 24. Rc2 {[%clk 0:01:32.7]} 24... Rad8 {[%clk
0:02:29.2]} 25. Rd1 {[%clk 0:01:32]} 25... Kf7 {[%clk 0:02:26.2]} 26. Rcd2
{[%clk 0:01:24.3]} 26... Be5 {[%clk 0:02:12.8]} 27. Bg5 {[%clk 0:01:18.2]} 27...
Rd7 {[%clk 0:02:12.6]} 28. f4 {[%clk 0:01:14.7]} 28... Bxc3 {[%clk 0:02:03.1]}
29. Rxd6 {[%clk 0:01:14.5]} 29... Rxd6 {[%clk 0:01:57.2]} 30. Rxd6 {[%clk
0:01:15.4]} 30... Bf6 {[%clk 0:01:56.5]} 31. Rd7+ {[%clk 0:00:49.6]} 31... Re7
{[%clk 0:01:55.7]} 32. Rxe7+ {[%clk 0:00:41.7]} 32... Kxe7 {[%clk 0:01:56]} 33.
Kf2 {[%clk 0:00:42.3]} 33... Kf7 {[%clk 0:01:49.6]} 34. Ke3 {[%clk 0:00:36]}
34... Bd4+ {[%clk 0:01:47.9]} 35. Ke4 {[%clk 0:00:35.9]} 35... Nc6 {[%clk
0:01:46.5]} 36. g4 {[%clk 0:00:35]} 36... Bf6 {[%clk 0:01:34.4]} 37. h5 {[%clk
0:00:26.3]} 37... gxh5 {[%clk 0:01:28.2]} 38. gxh5 {[%clk 0:00:27.2]} 38... Nd4
{[%clk 0:01:27.4]} 39. h6 {[%clk 0:00:25.4]} 39... Kg6 {[%clk 0:01:16.6]} 40.
Bh3 {[%clk 0:00:24.5]} 40... Bh8 {[%clk 0:00:55.5]} 41. a4 {[%clk 0:00:16]}
41... a6 {[%clk 0:00:55.5]} 42. Bf1 {[%clk 0:00:15.4]} 42... Nf5 {[%clk
0:00:35.4]} 43. Bd3 {[%clk 0:00:13.8]} 43... Nxh6 {[%clk 0:00:30.3]} 44. Bd8
{[%clk 0:00:13.8]} 44... Nf5 {[%clk 0:00:26.6]} 45. Bxb6 {[%clk 0:00:13.3]}
45... Bd4 {[%clk 0:00:27.3]} 46. a5 {[%clk 0:00:13.3]} 46... Kf6 {[%clk
0:00:26]} 47. Bc2 {[%clk 0:00:11.6]} 47... Nd6+ {[%clk 0:00:25.4]} 48. Kd3
{[%clk 0:00:11.9]} 48... e5 {[%clk 0:00:25.8]} 49. fxe5+ {[%clk 0:00:11.3]}
49... Kxe5 {[%clk 0:00:26]} 50. Ba4 {[%clk 0:00:11.2]} 50... Ke6 {[%clk
0:00:20.6]} 51. Bc6 {[%clk 0:00:11.2]} 51... Ke7 {[%clk 0:00:20.8]} 52. Bc7
{[%clk 0:00:11.3]} 52... Ke6 {[%clk 0:00:21.1]} 53. Bb6 {[%clk 0:00:06.8]} 53...
Ke7 {[%clk 0:00:21.2]} 54. Bd5 {[%clk 0:00:05.6]} 54... Kd7 {[%clk 0:00:18.8]}
55. Bf3 {[%clk 0:00:03.6]} 55... Ke6 {[%clk 0:00:16.1]} 56. Bg4+ {[%clk
0:00:03.6]} 56... Ke5 {[%clk 0:00:13.8]} 57. Bc7 {[%clk 0:00:03.5]} 57... Bb2
{[%clk 0:00:11.2]} 58. Bc8 {[%clk 0:00:04]} 58... Ba3 {[%clk 0:00:10.3]} 59.
Bxa6 {[%clk 0:00:04.6]} 59... Ke6 {[%clk 0:00:10.9]} 60. Bb5 {[%clk 0:00:03.4]}
60... Nxb5 {[%clk 0:00:08.9]} 61. cxb5 {[%clk 0:00:04.3]} 61... Kd5 {[%clk
0:00:09.4]} 62. a6 {[%clk 0:00:04]} 62... c4+ {[%clk 0:00:09.7]} 63. Kc3 {[%clk
0:00:04.5]} 63... Bc5 {[%clk 0:00:10.2]} 64. b6 {[%clk 0:00:03.2]} 64... Kc6
{[%clk 0:00:10.5]} 65. a7 {[%clk 0:00:01.2]} 65... Kb7 {[%clk 0:00:10.5]} 66.
Kxc4 {[%clk 0:00:02.1]} 66... Bxb6 {[%clk 0:00:11.2]} 67. Bxb6 {[%clk 0:00:03]}
67... Ka8 {[%clk 0:00:11.8]} 68. Kb5 {[%clk 0:00:03.9]} 68... Kb7 {[%clk
0:00:12.3]} 69. Bc5 {[%clk 0:00:04.7]} 69... Ka8 {[%clk 0:00:13.2]} 70. Kc4
{[%clk 0:00:05.6]} 70... Kb7 {[%clk 0:00:14.1]} 71. Kd5 {[%clk 0:00:06.4]} 71...
Ka8 {[%clk 0:00:15]} 72. Bd4 {[%clk 0:00:06.9]} 72... Kb7 {[%clk 0:00:15.9]} 73.
Kc5 {[%clk 0:00:07.5]} 73... Ka8 {[%clk 0:00:16.8]} 74. Kb5 {[%clk 0:00:08]}
74... Kb7 {[%clk 0:00:17.7]} 75. Ka5 {[%clk 0:00:08.6]} 75... Ka8 {[%clk
0:00:18.6]} 76. Kb5 {[%clk 0:00:08.6]} 76... Kb7 {[%clk 0:00:19.5]} 77. Ka5
{[%clk 0:00:09.5]} 77... Ka8 {[%clk 0:00:20.4]} 78. Kb5 {[%clk 0:00:10.4]}
1/2-1/2